{"text_format":"3","workbook":"xlsx","n_sheets":4,"sheets":["Santrauka","Turtas","Įsipareigojimai","Kategorijos"],"not_rendered":{"defined_names":10},"read":"whole","date_system":"1900"}

{"sheet":"Santrauka","index":0,"n_rows":13,"n_cols":4,"rows_kept":13}
[null,"Balanso lapas"]
[null,null,{"$f":"\"FY-\"&YEAR(TODAY())-1","v":"FY-2016"},{"$f":"\"FY-\"&YEAR(TODAY())","v":"FY-2017"}]
[null,"Turto tipas","Ankstesni metai","Dabartiniai metai"]
[null,"Dabartinis turtas",{"$f":"SUMIFS(Turtas[Ankstesni metai],Turtas[Turto tipas],Ataskaitų_sritis[[#This Row],[Turto tipas]])+SUMIFS(Įsipareigojimai[Ankstesni metai],Įsipareigojimai[Įsipareigojimų tipas],Ataskaitų_sritis[[#This Row],[Turto tipas]])","v":600},{"$f":"SUMIFS(Turtas[Dabartiniai metai],Turtas[Turto tipas],Ataskaitų_sritis[[#This Row],[Turto tipas]])+SUMIFS(Įsipareigojimai[Dabartiniai metai],Įsipareigojimai[Įsipareigojimų tipas],Ataskaitų_sritis[[#This Row],[Turto tipas]])","v":600}]
[null,"Ilgalaikis turtas",{"$f":"SUMIFS(Turtas[Ankstesni metai],Turtas[Turto tipas],Ataskaitų_sritis[[#This Row],[Turto tipas]])+SUMIFS(Įsipareigojimai[Ankstesni metai],Įsipareigojimai[Įsipareigojimų tipas],Ataskaitų_sritis[[#This Row],[Turto tipas]])","v":{"v":-100,"d":"-100 "}},{"$f":"SUMIFS(Turtas[Dabartiniai metai],Turtas[Turto tipas],Ataskaitų_sritis[[#This Row],[Turto tipas]])+SUMIFS(Įsipareigojimai[Dabartiniai metai],Įsipareigojimai[Įsipareigojimų tipas],Ataskaitų_sritis[[#This Row],[Turto tipas]])","v":{"v":-85,"d":"-85 "}}]
[null,"Kitas turtas",{"$f":"SUMIFS(Turtas[Ankstesni metai],Turtas[Turto tipas],Ataskaitų_sritis[[#This Row],[Turto tipas]])+SUMIFS(Įsipareigojimai[Ankstesni metai],Įsipareigojimai[Įsipareigojimų tipas],Ataskaitų_sritis[[#This Row],[Turto tipas]])","v":0},{"$f":"SUMIFS(Turtas[Dabartiniai metai],Turtas[Turto tipas],Ataskaitų_sritis[[#This Row],[Turto tipas]])+SUMIFS(Įsipareigojimai[Dabartiniai metai],Įsipareigojimai[Įsipareigojimų tipas],Ataskaitų_sritis[[#This Row],[Turto tipas]])","v":0}]
[null,"Dabartiniai įsipareigojimai",{"$f":"SUMIFS(Turtas[Ankstesni metai],Turtas[Turto tipas],Ataskaitų_sritis[[#This Row],[Turto tipas]])+SUMIFS(Įsipareigojimai[Ankstesni metai],Įsipareigojimai[Įsipareigojimų tipas],Ataskaitų_sritis[[#This Row],[Turto tipas]])","v":500},{"$f":"SUMIFS(Turtas[Dabartiniai metai],Turtas[Turto tipas],Ataskaitų_sritis[[#This Row],[Turto tipas]])+SUMIFS(Įsipareigojimai[Dabartiniai metai],Įsipareigojimai[Įsipareigojimų tipas],Ataskaitų_sritis[[#This Row],[Turto tipas]])","v":350}]
[null,"Ilgalaikiai įsipareigojimai",{"$f":"SUMIFS(Turtas[Ankstesni metai],Turtas[Turto tipas],Ataskaitų_sritis[[#This Row],[Turto tipas]])+SUMIFS(Įsipareigojimai[Ankstesni metai],Įsipareigojimai[Įsipareigojimų tipas],Ataskaitų_sritis[[#This Row],[Turto tipas]])","v":0},{"$f":"SUMIFS(Turtas[Dabartiniai metai],Turtas[Turto tipas],Ataskaitų_sritis[[#This Row],[Turto tipas]])+SUMIFS(Įsipareigojimai[Dabartiniai metai],Įsipareigojimai[Įsipareigojimų tipas],Ataskaitų_sritis[[#This Row],[Turto tipas]])","v":0}]
[null,"Savininko kapitalas",{"$f":"SUMIFS(Turtas[Ankstesni metai],Turtas[Turto tipas],Ataskaitų_sritis[[#This Row],[Turto tipas]])+SUMIFS(Įsipareigojimai[Ankstesni metai],Įsipareigojimai[Įsipareigojimų tipas],Ataskaitų_sritis[[#This Row],[Turto tipas]])","v":0},{"$f":"SUMIFS(Turtas[Dabartiniai metai],Turtas[Turto tipas],Ataskaitų_sritis[[#This Row],[Turto tipas]])+SUMIFS(Įsipareigojimai[Dabartiniai metai],Įsipareigojimai[Įsipareigojimų tipas],Ataskaitų_sritis[[#This Row],[Turto tipas]])","v":350}]
[null,"Iš viso",{"$f":"SUBTOTAL(109,Ataskaitų_sritis[Ankstesni metai])","v":{"v":1000,"d":"1,000"}},{"$f":"SUBTOTAL(109,Ataskaitų_sritis[Dabartiniai metai])","v":{"v":1215,"d":"1,215"}}]
[null,"Bendras turtas",{"$f":"Turtas[[#Totals],[Ankstesni metai]]","v":500},{"$f":"Turtas[[#Totals],[Dabartiniai metai]]","v":515}]
[null,"Bendri įsipareigojimai ir akcininkų kapitalas",{"$f":"Įsipareigojimai[[#Totals],[Ankstesni metai]]","v":500},{"$f":"Įsipareigojimai[[#Totals],[Dabartiniai metai]]","v":700}]
[null,"Likutis",{"$f":"C11-C12","v":0},{"$f":"D11-D12","v":{"v":-185,"d":"-185 "}}]

{"sheet":"Turtas","index":1,"n_rows":14,"n_cols":5,"rows_kept":14}
[null,"Turtas"]
[{"$nulls":3},{"$f":"FM_METAI","v":"FY-2016"},{"$f":"FM_2_METAI","v":"FY-2017"}]
[null,"Turto tipas","Aprašas","Ankstesni metai","Dabartiniai metai"]
[null,"Dabartinis turtas","Pinigai",600,600]
[null,"Dabartinis turtas","Investicijos"]
[null,"Dabartinis turtas","Atsargos"]
[null,"Dabartinis turtas","Gautinos sumos"]
[null,"Dabartinis turtas","Iš anksto apmokėtas išlaidos"]
[null,"Ilgalaikis turtas","Turtas ir įrenginiai"]
[null,"Ilgalaikis turtas","Nuomos pagerinimas"]
[null,"Ilgalaikis turtas","Nuosavybės ir kitos investicijos"]
[null,"Ilgalaikis turtas","Mažiau sukaupta nusidėvėjimo (neigiama reikšmė)",{"v":-100,"d":"-100 "},{"v":-85,"d":"-85 "}]
[null,"Kitas turtas","Labdara"]
[null,"Bendras turtas",null,{"$f":"SUBTOTAL(109,Turtas[Ankstesni metai])","v":500},{"$f":"SUBTOTAL(109,Turtas[Dabartiniai metai])","v":515}]

{"sheet":"Įsipareigojimai","index":2,"n_rows":12,"n_cols":5,"rows_kept":12}
[null,"Įsipareigojimai"]
[{"$nulls":3},{"$f":"FM_METAI","v":"FY-2016"},{"$f":"FM_2_METAI","v":"FY-2017"}]
[null,"Įsipareigojimų tipas","Aprašas","Ankstesni metai","Dabartiniai metai"]
[null,"Dabartiniai įsipareigojimai","Mokėtinos sumos",null,350]
[null,"Dabartiniai įsipareigojimai","Sukaupti atlyginimai"]
[null,"Dabartiniai įsipareigojimai","Sukaupta kompensacija",500]
[null,"Dabartiniai įsipareigojimai","Mokėtini pajamų mokesčiai"]
[null,"Dabartiniai įsipareigojimai","Neuždirbtos pajamos"]
[null,"Ilgalaikiai įsipareigojimai","Mokėtina būsto paskola"]
[null,"Savininko kapitalas","Investicijų kapitalas",null,350]
[null,"Savininko kapitalas","Sukauptas nepaskirstytasis pelnas"]
[null,"Bendri įsipareigojimai ir akcininkų kapitalas",null,{"$f":"SUBTOTAL(109,Įsipareigojimai[Ankstesni metai])","v":500},{"$f":"SUBTOTAL(109,Įsipareigojimai[Dabartiniai metai])","v":700}]

{"sheet":"Kategorijos","index":3,"n_rows":9,"n_cols":2,"rows_kept":9}
[null,"Kategorijos"]
[]
[null,"Kategorijos"]
[null,"Dabartinis turtas"]
[null,"Ilgalaikis turtas"]
[null,"Kitas turtas"]
[null,"Dabartiniai įsipareigojimai"]
[null,"Ilgalaikiai įsipareigojimai"]
[null,"Savininko kapitalas"]